bitfinex/quotes_BTCUSD_20250618
["timestamp","ask_amount","ask_price","bid_price","bid_amount"]
[1750269792832,0.4266167,104390.0,104380.0,0.28293012]
[1750269793066,0.10577488,104390.0,104380.0,0.28293012]
[1750269793275,0.11535415,104390.0,104380.0,0.28293012]
[1750269793489,0.30694403,104390.0,104380.0,0.27335039]
[1750269793706,0.55076769,104380.0,104370.0,0.20120723]
[1750269793919,0.34,104370.0,104360.0,0.43460826]
[1750269794133,0.341,104370.0,104360.0,0.66480372]
[1750269794400,0.028797,104400.0,104380.0,0.26288731]
[1750269794698,0.56030577,104400.0,104390.0,0.22032668]
[1750269794939,0.08003789,104390.0,104380.0,0.37928927]
[1750269795166,0.001,104390.0,104380.0,0.42828927]
[1750269795403,0.028793,104410.0,104390.0,0.22032678]
[1750269795404,0.22988358,104400.0,104390.0,0.22032678]
[1750269795649,0.29734412,104400.0,104390.0,0.22116]
[1750269795869,0.01915791,104390.0,104380.0,0.60902946]
[1750269796085,0.22032641,104390.0,104380.0,0.56804955]
[1750269796306,0.02873718,104390.0,104380.0,0.57762928]
[1750269796536,0.02873709,104390.0,104380.0,0.57762928]
[1750269797001,0.00957863,104390.0,104380.0,0.60992928]
[1750269797216,0.4366157,104400.0,104390.0,0.22032649]
[1750269797474,0.62976548,104400.0,104380.0,0.59064871]
[1750269797682,0.02515772,104390.0,104380.0,0.55934871]
[1750269797890,0.03473699,104390.0,104380.0,0.55934871]
[1750269798282,0.03573699,104390.0,104380.0,0.52904871]
[1750269798551,0.56992724,104380.0,104370.0,0.22380982]
[1750269798768,0.03832297,104370.0,104360.0,0.48378177]
[1750269798982,0.35916185,104370.0,104360.0,0.45070196]
[1750269799202,0.55078816,104370.0,104360.0,8.992e-05]
[1750269800106,0.64702992,104370.0,104360.0,8.992e-05]
[1750269800324,5.50403177,104370.0,104360.0,8.992e-05]
[1750269800559,5.56903177,104370.0,104360.0,8.992e-05]
[1750269801001,5.57003177,104370.0,104360.0,0.00508992]
[1750269801220,5.57003177,104370.0,104330.0,0.0001]
[1750269801221,5.26360949,104340.0,104330.0,0.0001]
[1750269801441,5.47054132,104340.0,104330.0,0.0001901]
[1750269801651,5.5950321,104340.0,104330.0,0.0001901]
[1750269801864,5.3743921,104340.0,104330.0,0.0001901]
[1750269802094,5.40794288,104340.0,104330.0,0.0001901]
[1750269802307,0.64709025,104340.0,104330.0,0.19188951]
[1750269802566,0.5591669,104340.0,104330.0,0.22064377]
[1750269802815,0.55084849,104340.0,104330.0,0.0001901]
[1750269803585,0.55284849,104340.0,104330.0,0.0001901]
[1750269803822,0.58166049,104340.0,104330.0,0.0001901]
[1750269804058,0.67790225,104340.0,104330.0,0.0001901]
[1750269804289,5.38866325,104340.0,104330.0,0.0001901]
[1750269804524,5.38966325,104340.0,104330.0,0.0001901]
[1750269804759,5.4392041,104340.0,104330.0,0.0001901]
[1750269805007,5.4714041,104340.0,104330.0,0.0001901]
[1750269805252,5.56755332,104340.0,104330.0,0.0001901]
[1750269805502,5.56555332,104340.0,104330.0,0.0001901]
[1750269805941,5.4694041,104340.0,104330.0,0.0001901]
[1750269806152,5.4042041,104340.0,104330.0,0.0001901]
[1750269806363,5.4032041,104340.0,104330.0,0.0001901]
[1750269806817,5.4032041,104340.0,104330.0,0.0011901]
[1750269806818,5.4072041,104340.0,104330.0,0.0011901]
[1750269807035,5.4092041,104340.0,104330.0,0.0011901]
[1750269807268,0.23966049,104340.0,104330.0,0.20147448]
[1750269807520,5.50420918,104340.0,104330.0,0.0001901]
[1750269807729,5.50720918,104340.0,104330.0,0.0001901]
[1750269808153,5.53830918,104340.0,104330.0,0.0001901]
[1750269808363,5.53730918,104340.0,104330.0,0.0001901]
[1750269808604,5.5057584,104340.0,104330.0,0.0001901]
[1750269808806,5.49376973,104340.0,104330.0,0.0001901]
[1750269809022,5.71224973,104340.0,104330.0,0.0001901]
[1750269809654,5.71204973,104340.0,104330.0,0.0001901]
[1750269809869,5.48976973,104340.0,104330.0,0.0001901]
[1750269810295,5.71392973,104340.0,104330.0,0.0011901]
[1750269810505,5.71592973,104340.0,104330.0,0.0011901]
[1750269810926,5.71392973,104340.0,104330.0,0.0011901]
[1750269811433,5.71592973,104340.0,104330.0,0.0011901]
[1750269811863,5.38507966,104340.0,104330.0,0.0011901]
[1750269812087,0.24566049,104340.0,104330.0,0.0011901]
[1750269812320,0.34190225,104340.0,104330.0,0.0011901]
[1750269812534,5.4092041,104340.0,104330.0,0.0011901]
[1750269812976,5.50785488,104340.0,104330.0,0.0011901]
[1750269813188,5.7540041,104340.0,104330.0,0.0011901]
[1750269813408,0.54136149,104290.0,104280.0,0.0001]
[1750269813637,0.54136149,104290.0,104280.0,0.00056936]
[1750269814067,5.25412249,104290.0,104280.0,0.00056936]
[1750269814279,5.28275085,104290.0,104280.0,0.00056936]
[1750269814712,0.57957822,104290.0,104280.0,0.19236069]
[1750269814960,0.38880408,104290.0,104280.0,0.23071756]
[1750269815169,0.37935236,104290.0,104280.0,0.23071765]
[1750269815380,0.5711253,104290.0,104280.0,0.20195025]
[1750269815591,0.56153749,104290.0,104280.0,0.21153972]
[1750269815801,0.5701864,104290.0,104280.0,0.00056936]
[1750269816010,0.369825,104290.0,104280.0,0.19336069]
[1750269816252,0.369825,104290.0,104280.0,0.33522827]
[1750269816470,0.342,104290.0,104280.0,0.43247003]
[1750269816686,0.342,104290.0,104280.0,0.38247003]
[1750269816913,0.342,104290.0,104280.0,0.28522827]
[1750269817133,0.001,104290.0,104280.0,0.43147003]
[1750269817346,0.002,104290.0,104280.0,0.43347003]
[1750269817599,0.002,104290.0,104280.0,0.38347003]
[1750269818037,0.002,104290.0,104280.0,0.43347003]
[1750269818259,0.002,104290.0,104280.0,0.87428189]
[1750269818472,0.002,104290.0,104280.0,0.43347003]
[1750269818972,0.001,104290.0,104280.0,0.38147003]
[1750269819182,0.001,104290.0,104280.0,0.60067003]
[1750269819389,0.002,104290.0,104280.0,0.60167003]
[1750269820674,0.002,104290.0,104280.0,0.65167003]
[1750269820888,0.001,104290.0,104280.0,0.65067003]
[1750269821102,0.002,104290.0,104280.0,0.65367003]
[1750269821314,0.002,104290.0,104280.0,0.60367003]
[1750269821962,0.002,104290.0,104280.0,1.09400189]
[1750269822177,0.002,104290.0,104280.0,1.04400189]
[1750269822385,0.002,104290.0,104280.0,0.66773088]
[1750269822852,0.07703789,104310.0,104300.0,0.33581662]
[1750269823064,0.07703789,104310.0,104300.0,0.65093838]
[1750269823274,0.07703789,104310.0,104300.0,0.60093838]
[1750269823489,0.07703789,104330.0,104320.0,0.33387434]
[1750269823705,0.07703789,104330.0,104320.0,0.4301161]
[1750269823892,0.41703789,104330.0,104320.0,0.3801161]
[1750269824184,0.41703789,104330.0,104320.0,0.5430891]
[1750269824405,0.41703789,104330.0,104320.0,0.6489161]
[1750269824626,0.07803789,104340.0,104330.0,0.2814532]
[1750269824844,0.07803789,104340.0,104330.0,0.37769496]
[1750269825058,0.07803789,104340.0,104330.0,0.59649496]
[1750269825059,0.001,104340.0,104330.0,0.59649496]
[1750269825513,0.001,104340.0,104330.0,0.37769496]
[1750269825732,0.001,104340.0,104330.0,0.59669496]
[1750269825733,0.07803789,104340.0,104330.0,0.59669496]
[1750269825943,0.07803789,104340.0,104330.0,0.2514532]
[1750269826155,0.08762111,104340.0,104330.0,0.4398532]
[1750269826395,0.07803789,104340.0,104330.0,0.4398532]
[1750269826659,0.43720479,104340.0,104330.0,0.2204532]
[1750269826895,0.41803789,104340.0,104330.0,0.2204532]
[1750269827104,0.42862111,104340.0,104330.0,0.2224532]
[1750269827317,0.43920451,104340.0,104330.0,0.2264532]
[1750269827759,0.42003789,104340.0,104330.0,0.2264532]
[1750269828019,0.343,104340.0,104330.0,0.43649496]
[1750269828233,0.343,104340.0,104330.0,0.38649496]
[1750269829310,0.35258359,104340.0,104330.0,0.38649496]
[1750269829523,0.35258331,104340.0,104330.0,0.38649496]
[1750269829738,0.36216671,104340.0,104330.0,0.2264532]
[1750269829946,0.46795573,104340.0,104330.0,0.45479771]
[1750269830163,0.65963742,104340.0,104330.0,0.45479771]
[1750269830374,0.65963742,104340.0,104330.0,0.006]
[1750269830375,0.6404708,104340.0,104330.0,0.006]
[1750269830649,0.63088694,104340.0,104330.0,0.006]
[1750269830874,5.55580308,104340.0,104330.0,0.006]
[1750269831087,5.60124393,104340.0,104330.0,0.006]
[1750269831296,5.34364794,104340.0,104330.0,0.006]
[1750269831523,5.34264794,104340.0,104330.0,0.002]
[1750269831960,5.34264794,104340.0,104330.0,0.20228428]
[1750269831961,0.62988694,104340.0,104330.0,0.20228428]
[1750269832172,0.42862157,104340.0,104330.0,0.2204532]
[1750269832382,0.343,104340.0,104330.0,0.2850532]
[1750269832588,0.346,104340.0,104330.0,0.2860532]
[1750269832813,0.35158331,104340.0,104330.0,0.2850532]
[1750269833213,0.342,104340.0,104330.0,0.2850532]
[1750269833512,0.3515834,104340.0,104330.0,0.2850532]
[1750269833975,0.37075094,104340.0,104330.0,0.2224532]
[1750269834198,0.3611669,104340.0,104330.0,0.2224532]
[1750269834442,0.341,104340.0,104330.0,0.36669496]
[1750269834666,0.35058322,104340.0,104330.0,0.38229496]
[1750269834890,0.342,104340.0,104330.0,0.43229496]
[1750269835116,0.002,104340.0,104330.0,0.38229496]
[1750269835636,0.003,104340.0,104330.0,0.38429496]
[1750269835865,0.003,104340.0,104330.0,0.87510682]
[1750269836582,0.003,104340.0,104330.0,0.82510682]
[1750269836851,0.002,104340.0,104330.0,0.92310682]
[1750269837086,0.07703789,104380.0,104370.0,0.22036872]
[1750269837315,0.07703789,104380.0,104370.0,0.59547048]
[1750269837795,5e-05,104390.0,104380.0,0.2703476]
[1750269838030,5e-05,104390.0,104380.0,0.42938936]
[1750269838495,5e-05,104390.0,104380.0,0.37947948]
[1750269838720,0.01920772,104390.0,104380.0,0.30709975]
[1750269838940,0.22237622,104390.0,104380.0,0.1926977]
[1750269839190,0.5527975,104390.0,104380.0,0.20227798]
[1750269839405,0.34005,104390.0,104380.0,0.23001782]
[1750269839627,0.34005,104390.0,104380.0,0.38705958]
[1750269839846,5e-05,104390.0,104380.0,0.43805958]
[1750269840278,5e-05,104390.0,104380.0,0.38805958]
[1750269840500,5e-05,104390.0,104380.0,0.43805958]
[1750269841376,0.00105,104390.0,104380.0,0.52193958]
[1750269841593,0.00105,104390.0,104380.0,0.53648043]
[1750269841817,0.00105,104390.0,104380.0,0.39005958]
[1750269842093,0.00105,104390.0,104380.0,0.09833188]
[1750269842094,0.55179759,104390.0,104380.0,0.09833188]
[1750269842308,0.5421685,104390.0,104380.0,0.01367049]
[1750269842531,0.5421685,104390.0,104380.0,0.2314379]
[1750269842532,0.3611579,104390.0,104380.0,0.2314379]
[1750269842757,0.341,104390.0,104380.0,0.45373763]
[1750269842994,0.36873717,104390.0,104380.0,0.63701929]
[1750269843213,0.36873717,104390.0,104380.0,0.5448993]
[1750269843214,0.36873681,104390.0,104380.0,0.5448993]
[1750269843433,0.36973681,104390.0,104380.0,0.23701754]
[1750269843658,0.56132659,104390.0,104380.0,0.00509012]
[1750269843877,5.5420297,104390.0,104380.0,0.00509012]
[1750269844090,0.70181623,104390.0,104380.0,0.00509012]
[1750269844308,0.71963696,104390.0,104380.0,0.00509012]
[1750269844778,0.6223952,104390.0,104380.0,0.20127807]
[1750269845002,0.55174759,104390.0,104380.0,0.00209012]
[1750269845461,0.55074759,104390.0,104380.0,0.00109012]
[1750269845677,0.55474759,104390.0,104380.0,0.00209012]
[1750269845946,0.55474759,104390.0,104380.0,0.00109012]
[1750269846163,0.55474759,104390.0,104380.0,0.00209012]
[1750269846374,0.58057737,104390.0,104380.0,0.00209012]
[1750269846836,5.51700882,104390.0,104380.0,0.00209012]
[1750269847267,5.51480312,104390.0,104380.0,0.00209012]
[1750269847478,5.55287586,104390.0,104380.0,0.00209012]
[1750269847689,5.70287586,104390.0,104380.0,0.00209012]
[1750269847907,5.76095234,104390.0,104380.0,0.00209012]
[1750269848132,5.75695234,104390.0,104380.0,0.00109012]
[1750269848350,5.80102508,104390.0,104380.0,0.00209012]
[1750269848582,5.80102508,104390.0,104380.0,0.00109012]
[1750269848583,5.76947053,104390.0,104380.0,0.00109012]
[1750269849043,5.51380214,104390.0,104380.0,0.00109012]
[1750269849281,5.65802772,104390.0,104380.0,0.00209012]
[1750269849502,5.70112214,104390.0,104380.0,0.00209012]
[1750269849782,5.73302214,104390.0,104380.0,0.00209012]
[1750269850212,5.77109488,104390.0,104380.0,0.00209012]
[1750269850430,6.0172441,104390.0,104380.0,0.00209012]
[1750269850693,0.57001613,104340.0,104330.0,0.22155293]
[1750269850928,0.57001613,104340.0,104330.0,0.20251991]
[1750269850929,0.55084905,104340.0,104330.0,0.20251991]
[1750269851152,0.54126509,104340.0,104330.0,0.00123553]
[1750269851377,5.27688274,104340.0,104330.0,0.00123553]
[1750269851604,5.6960115,104340.0,104330.0,0.00123553]
[1750269851824,5.7283115,104340.0,104330.0,0.00123553]
[1750269852048,5.7571255,104340.0,104330.0,0.00123553]
[1750269852284,5.78770052,104340.0,104330.0,0.00223553]
[1750269852513,5.78570052,104340.0,104330.0,0.00123553]
[1750269852952,5.46590619,104340.0,104330.0,0.00223553]
[1750269853176,0.40425442,104340.0,104330.0,0.2131046]
[1750269853396,0.40356476,104340.0,104330.0,0.26327333]
[1750269853639,0.40356476,104340.0,104330.0,0.29357333]
[1750269853860,0.59524654,104340.0,104330.0,0.20451972]
[1750269854078,0.3747515,104340.0,104330.0,0.20451981]
[1750269854300,0.55384895,104340.0,104330.0,0.00223553]
[1750269854539,0.54426509,104340.0,104330.0,0.00223553]
[1750269854755,0.54626509,104340.0,104330.0,0.00223553]
[1750269854971,0.54126509,104340.0,104330.0,0.00123553]
[1750269855183,0.54126509,104340.0,104330.0,0.00323553]
[1750269855419,0.89482234,104340.0,104330.0,0.00323553]
[1750269855632,0.34958699,104300.0,104290.0,0.286134]
[1750269855853,0.34958699,104300.0,104290.0,0.21108278]
[1750269855854,0.36876179,104300.0,104290.0,0.21108278]
[1750269856077,0.34,104300.0,104290.0,0.23025905]
[1750269856290,0.34,104300.0,104290.0,0.44210081]
[1750269856495,0.34,104300.0,104290.0,0.39210081]
[1750269856706,0.34,104300.0,104290.0,0.44210081]
[1750269857627,0.34,104320.0,104310.0,0.26572297]
[1750269857847,0.55088892,104320.0,104310.0,0.0644]
[1750269858063,0.43624176,104320.0,104290.0,0.00013604]
[1750269858278,0.43624176,104320.0,104290.0,0.38999538]
[1750269858279,0.37176133,104300.0,104290.0,0.38999538]
[1750269858490,0.37834887,104300.0,104290.0,0.26498916]
[1750269858703,0.55092972,104300.0,104290.0,0.00013604]
[1750269858919,0.55192972,104300.0,104290.0,0.20249762]
[1750269859130,0.55192972,104300.0,104290.0,0.00113604]
[1750269859349,0.55092972,104300.0,104290.0,0.19190898]
[1750269859576,0.55092972,104300.0,104290.0,0.26056226]
[1750269859577,0.36217407,104300.0,104290.0,0.26056226]
[1750269859794,0.004,104300.0,104290.0,0.65442402]
[1750269860027,0.004,104300.0,104290.0,1.19987588]
[1750269860463,0.36875123,104340.0,104330.0,0.23158419]
[1750269860464,0.57001632,104340.0,104330.0,0.23158419]
[1750269860684,0.10579196,104330.0,104320.0,0.29124391]
[1750269860906,0.08662221,104330.0,104320.0,0.23004391]
[1750269861120,0.09620644,104330.0,104320.0,0.23004391]
[1750269861382,0.01916672,104340.0,104330.0,0.2204532]
[1750269861607,0.00958322,104340.0,104330.0,0.3363532]
[1750269861823,0.05755701,104350.0,104340.0,0.22043208]
[1750269862053,0.06770395,104350.0,104340.0,0.23001567]
[1750269862292,0.06770395,104350.0,104340.0,0.29591493]
[1750269862293,0.00958249,104350.0,104340.0,0.29591493]
[1750269862500,0.32623254,104360.0,104350.0,0.21082847]
[1750269862717,0.55082829,104350.0,104340.0,0.27674867]
[1750269862928,0.55082866,104350.0,104340.0,0.201265]
[1750269863144,0.54124571,104350.0,104330.0,0.27570455]
[1750269863364,0.11537187,104340.0,104330.0,0.50971403]
[1750269863600,0.29747025,104340.0,104330.0,0.00113604]
[1750269863813,0.09620516,104340.0,104330.0,0.21200492]
[1750269864029,0.08662111,104340.0,104330.0,0.22158924]
[1750269864254,0.11537187,104340.0,104330.0,0.22058924]
[1750269864468,0.11537178,104340.0,104330.0,0.22058924]
[1750269864676,0.11425178,104340.0,104330.0,0.22058924]
[1750269864903,0.00958322,104340.0,104330.0,0.28458924]
[1750269865161,0.36616562,104350.0,104340.0,0.22043236]
[1750269865371,0.36616562,104350.0,104340.0,0.21084886]
[1750269865372,0.56441068,104350.0,104340.0,0.21084886]
[1750269865584,0.01916718,104340.0,104330.0,0.48924437]
[1750269865796,0.22143227,104340.0,104330.0,0.22158943]
[1750269866016,0.02975104,104340.0,104330.0,0.23117375]
[1750269866244,0.22043208,104340.0,104330.0,0.23017375]
[1750269866470,4.712761,104360.0,104350.0,0.22041096]
[1750269866696,0.2879328,104380.0,104370.0,0.20120723]
[1750269866923,0.01916323,104360.0,104350.0,0.30706949]
[1750269867148,0.01916323,104360.0,104340.0,0.40640104]
[1750269867149,0.02874773,104350.0,104340.0,0.40640104]
[1750269867355,0.22041123,104350.0,104340.0,0.22143254]
[1750269867576,0.03274773,104350.0,104340.0,0.2415998]
[1750269867795,0.63694653,104360.0,104350.0,0.22041123]
[1750269867796,0.65611247,104360.0,104350.0,0.22041123]
[1750269868006,0.65611031,104360.0,104350.0,0.21082865]
[1750269868221,0.65553288,104360.0,104350.0,0.21182865]
[1750269868428,0.665115,104360.0,104350.0,0.22041132]
[1750269868638,0.663115,104360.0,104350.0,0.21082865]
[1750269868844,0.02016488,104350.0,104340.0,0.50060747]
[1750269869086,0.03933059,104350.0,104340.0,0.50060747]
[1750269869304,0.23099326,104350.0,104340.0,0.00213604]
[1750269869524,0.230994,104350.0,104340.0,0.22256858]
[1750269869743,0.22041142,104350.0,104340.0,0.22056858]
[1750269869958,0.21082866,104350.0,104340.0,0.21098509]
[1750269870170,0.21082866,104350.0,104340.0,0.22056895]
[1750269870395,0.21082866,104350.0,104340.0,0.23015272]
[1750269870609,0.01916562,104350.0,104340.0,0.23973566]
[1750269870827,0.22041068,104350.0,104340.0,0.23015235]
[1750269871050,0.22041068,104350.0,104340.0,0.23973585]
[1750269871259,0.22041068,104350.0,104340.0,0.23115235]
[1750269871492,0.21082829,104350.0,104340.0,0.23115217]
[1750269871703,0.01058239,104350.0,104340.0,0.27173575]
[1750269871931,0.001,104350.0,104340.0,0.44917751]
[1750269872399,0.32476045,104400.0,104390.0,0.22032649]
[1750269872607,0.09619359,104400.0,104390.0,0.22032649]
[1750269872868,0.01915754,104390.0,104380.0,0.49809102]
[1750269873082,0.35915754,104390.0,104380.0,0.59433278]
[1750269873296,0.3496279,104400.0,104390.0,0.22032649]
[1750269873513,0.35920589,104400.0,104390.0,0.31656825]
[1750269873762,0.34962771,104400.0,104390.0,0.31670429]
[1750269873993,5e-05,104400.0,104390.0,0.31670429]
[1750269874211,5e-05,104400.0,104390.0,0.37840429]
[1750269874424,0.00105,104400.0,104390.0,0.37940429]
[1750269875092,0.00105,104400.0,104390.0,0.42940429]
[1750269875331,0.00105,104400.0,104390.0,0.37940429]
[1750269875754,0.02978425,104400.0,104390.0,0.37940429]
[1750269875962,0.02020589,104400.0,104390.0,0.37940429]
[1750269876172,0.0202058,104400.0,104390.0,0.37940429]
[1750269876385,0.28881539,104400.0,104390.0,0.00113604]
[1750269876850,5.483259,104400.0,104390.0,0.00113604]
[1750269877066,5.53929815,104400.0,104390.0,0.00113604]
[1750269877275,0.36874801,104350.0,104340.0,0.2214318]
[1750269877518,0.35916506,104350.0,104340.0,0.23101594]
[1750269877727,0.56999381,104350.0,104340.0,0.22157369]
[1750269877936,0.56999381,104350.0,104340.0,0.23115719]
[1750269878147,0.37833114,104350.0,104340.0,0.23115719]
[1750269878388,0.56041068,104350.0,104340.0,0.23115719]
[1750269878595,0.36874801,104350.0,104340.0,0.23115719]
[1750269878815,0.36874801,104350.0,104340.0,0.21199001]
[1750269878816,0.56999372,104350.0,104340.0,0.21199001]
[1750269879025,0.56999372,104350.0,104340.0,0.23215709]
[1750269879026,0.36974791,104350.0,104340.0,0.23215709]
[1750269879239,0.36016506,104350.0,104340.0,0.22257369]
[1750269879449,0.55182829,104350.0,104340.0,0.20340624]
[1750269879695,0.54224562,104350.0,104340.0,0.00214115]
[1750269879931,0.54224562,104350.0,104340.0,0.21298983]
[1750269880166,0.54224562,104350.0,104340.0,0.20340615]
[1750269880430,0.54224562,104350.0,104340.0,0.00214115]
[1750269880678,0.56566922,104350.0,104340.0,0.00214115]
[1750269880913,0.56566922,104350.0,104340.0,0.00314115]
[1750269881159,5.59879696,104350.0,104340.0,0.00314115]
[1750269881416,5.68845056,104350.0,104340.0,0.00314115]
[1750269881682,0.001,104350.0,104340.0,0.27357323]
[1750269881896,0.001,104350.0,104340.0,0.09838291]
[1750269881897,0.21182829,104350.0,104340.0,0.09838291]
[1750269882106,0.21182829,104350.0,104340.0,0.00214115]
[1750269882322,0.21282829,104350.0,104340.0,0.00114115]
[1750269882532,0.21282829,104350.0,104340.0,0.00214115]
[1750269882743,0.21482829,104350.0,104340.0,0.00214115]
[1750269882961,0.22441142,104350.0,104340.0,0.00214115]
[1750269883172,0.21482875,104350.0,104340.0,0.21299001]
[1750269883386,0.21482875,104350.0,104340.0,0.2129902]
[1750269883594,0.21482875,104350.0,104340.0,0.0117252]
[1750269883807,0.21482875,104350.0,104340.0,0.00214115]
[1750269884763,0.21482875,104350.0,104340.0,0.20340615]
[1750269884985,0.0565802,104350.0,104340.0,0.00214115]
[1750269885230,5.38077303,104350.0,104340.0,0.00214115]
[1750269885451,5.40361683,104350.0,104340.0,0.00214115]
[1750269885667,0.34,104300.0,104290.0,0.20128929]
[1750269885885,0.34,104300.0,104290.0,0.2922951]
[1750269886106,0.34,104300.0,104290.0,0.43853686]
[1750269886324,0.34,104300.0,104290.0,0.38853686]
[1750269886996,0.34,104300.0,104290.0,0.64777686]
[1750269887209,0.56047461,104320.0,104310.0,0.2109095]
[1750269887423,0.56047461,104320.0,104310.0,0.22049603]
[1750269887641,0.56047461,104320.0,104310.0,0.2109095]
[1750269887862,0.55088928,104320.0,104310.0,0.2109095]
[1750269888363,0.5821793,104320.0,104310.0,0.22049603]
[1750269888591,0.57259397,104320.0,104310.0,0.001]
[1750269889261,0.59543604,104320.0,104310.0,0.001]
[1750269889685,0.59643604,104320.0,104310.0,0.002]
[1750269889911,0.59643604,104320.0,104310.0,0.22249529]
[1750269889912,0.36270469,104320.0,104310.0,0.22249529]
[1750269890121,0.23106004,104320.0,104310.0,0.30915089]
[1750269890339,0.21188928,104320.0,104310.0,0.002]
[1750269890543,0.75188928,104320.0,104310.0,0.19373617]
[1750269890755,0.55188928,104320.0,104310.0,0.20332279]
[1750269890970,0.36017076,104320.0,104310.0,0.27249539]
[1750269891195,0.36975619,104320.0,104310.0,0.21290923]
[1750269891412,0.64813086,104320.0,104310.0,0.002]
[1750269891882,5.62825161,104320.0,104310.0,0.002]
[1750269892108,5.62825161,104320.0,104290.0,0.20150234]
[1750269892109,0.21092935,104300.0,104290.0,0.00014126]
[1750269892566,5.37447296,104300.0,104290.0,0.00014126]
[1750269892777,5.39730301,104300.0,104290.0,0.00014126]
[1750269893009,0.55092935,104300.0,104290.0,0.20150275]
[1750269893233,0.55092935,104300.0,104290.0,0.00014126]
[1750269893234,5.37447296,104300.0,104290.0,0.00014126]
[1750269893692,5.37447296,104300.0,104290.0,0.00414126]
[1750269893693,5.49441416,104300.0,104290.0,0.00414126]
[1750269893909,5.70881416,104300.0,104290.0,0.00714126]
[1750269894194,5.73957441,104300.0,104290.0,0.00714126]
[1750269894453,5.73957441,104300.0,104280.0,0.0001]
[1750269894454,5.26866325,104290.0,104280.0,0.0001]
[1750269894673,0.55099004,104270.0,104260.0,0.0001]
[1750269894913,5.26375104,104270.0,104260.0,0.00056936]
[1750269895802,5.3599928,104270.0,104260.0,0.00056936]
[1750269896681,5.36494363,104270.0,104260.0,0.00056936]
[1750269896918,5.42904363,104270.0,104260.0,0.00156936]
[1750269897137,5.5806714,104270.0,104260.0,0.00256936]
[1750269897349,0.35454085,104260.0,104240.0,0.0001]
[1750269897561,5.58385413,104250.0,104240.0,0.0001]
[1750269898223,5.65880303,104250.0,104240.0,0.0001]
[1750269898430,5.81964207,104250.0,104240.0,0.0001]
[1750269898649,5.29952008,104240.0,104230.0,0.0001]
[1750269898862,5.36500159,104240.0,104230.0,0.0001]
[1750269899078,5.39576184,104240.0,104230.0,0.0001]
[1750269899306,5.55501106,104240.0,104230.0,0.0001]
[1750269899569,5.57763533,104240.0,104230.0,0.0001]
[1750269900040,5.57863533,104240.0,104230.0,0.0021]
[1750269900261,5.71178586,104240.0,104230.0,0.0021]
[1750269900480,5.75072184,104240.0,104230.0,0.0001]
[1750269900690,5.75072184,104240.0,104220.0,0.00016]
[1750269900691,0.61891816,104230.0,104220.0,0.00016]
[1750269900920,5.26881783,104210.0,104200.0,0.01]
[1750269901152,5.26881783,104210.0,104200.0,0.23072815]
[1750269901153,0.34,104210.0,104200.0,0.23072815]
[1750269901357,0.34959517,104210.0,104200.0,0.34262815]
[1750269901568,0.34,104210.0,104200.0,0.29262815]
[1750269901785,0.35919063,104210.0,104200.0,0.29262815]
[1750269902009,0.35919063,104210.0,104200.0,0.01]
[1750269902010,5.32137023,104210.0,104200.0,0.01]
[1750269902228,5.78579284,104210.0,104200.0,0.01]
[1750269902662,5.08649524,104200.0,104190.0,0.2074818]
[1750269902875,0.6715114,104200.0,104190.0,0.2362747]
[1750269903133,0.6473739,104200.0,104190.0,0.22667703]
[1750269903395,0.35919265,104200.0,104190.0,0.23627423]
[1750269903619,0.0213832,104200.0,104190.0,0.23627423]
[1750269903832,0.0213832,104200.0,104190.0,0.35127423]
[1750269904052,0.00046929,104210.0,104200.0,0.33422824]
[1750269904706,0.00046929,104210.0,104200.0,0.38047]
[1750269904922,0.00046929,104210.0,104200.0,0.43047]
[1750269905140,0.00046929,104210.0,104200.0,1.09858101]
[1750269905350,0.28662902,104260.0,104250.0,0.21103089]
[1750269905558,0.10581071,104260.0,104250.0,0.22062266]
[1750269905770,0.09874778,104260.0,104250.0,0.23021452]
[1750269905977,0.0962195,104260.0,104250.0,0.23021452]
[1750269906187,0.10581072,104260.0,104250.0,0.23021452]
[1750269906395,0.02877283,104260.0,104250.0,0.23021452]
[1750269906606,0.29763957,104260.0,104250.0,0.20158018]
[1750269906806,0.49763957,104260.0,104250.0,0.22076418]
[1750269907011,0.48804863,104260.0,104250.0,0.21117223]
[1750269907213,0.28904863,104260.0,104250.0,0.22076409]
[1750269907458,0.02118179,104260.0,104250.0,0.23135577]
[1750269907665,0.38036368,104260.0,104250.0,0.23135577]
[1750269907871,0.36118143,104260.0,104250.0,0.29315577]
[1750269908080,0.35159057,104260.0,104250.0,0.34315577]
[1750269908303,0.002,104260.0,104250.0,0.34315577]
[1750269908506,0.002,104260.0,104250.0,0.29315577]
[1750269909160,0.002,104260.0,104250.0,0.43939753]
[1750269909388,0.29621554,104280.0,104270.0,0.22058006]
[1750269909595,0.11539402,104280.0,104270.0,0.21099022]
[1750269909809,0.46498349,104280.0,104270.0,0.23016999]
[1750269910014,0.45539476,104280.0,104270.0,0.22058015]
[1750269910222,0.0287696,104270.0,104260.0,0.20140346]
[1750269910432,0.01917949,104270.0,104260.0,0.43714544]
[1750269910639,0.64981445,104280.0,104270.0,0.21099022]
[1750269911051,0.41703789,104280.0,104270.0,0.21099022]
[1750269911263,0.55196944,104280.0,104270.0,0.21099022]
[1750269911462,0.56455891,104280.0,104270.0,0.20240011]
[1750269911674,0.37276758,104280.0,104270.0,0.22158006]
[1750269911889,0.35358892,104280.0,104270.0,0.22158006]
[1750269912109,0.80292915,104280.0,104270.0,0.001]
[1750269912338,0.36317793,104280.0,104270.0,0.21199022]
[1750269912577,0.36317793,104280.0,104270.0,0.22158006]
[1750269912790,0.38235669,104280.0,104270.0,0.22158015]
[1750269913002,0.59593152,104280.0,104270.0,0.22158052]
[1750269913219,0.58634242,104280.0,104270.0,0.22158052]
[1750269913475,0.58634141,104280.0,104270.0,0.22158052]
[1750269913692,0.21101028,104260.0,104250.0,0.00014134]
[1750269913903,0.34,104240.0,104220.0,0.29607652]
[1750269914125,0.34,104240.0,104230.0,0.20147749]
[1750269914336,0.35918529,104240.0,104230.0,0.00889752]
[1750269914558,0.34,104240.0,104230.0,0.42641483]
[1750269914791,0.3591851,104240.0,104230.0,0.49840872]
[1750269915006,0.57023623,104240.0,104230.0,0.29693168]
[1750269915225,0.3591851,104240.0,104230.0,0.50800306]
[1750269915460,0.34959159,104250.0,104240.0,0.22063894]
[1750269915678,0.34959159,104250.0,104240.0,0.27225099]
[1750269915920,0.0191851,104240.0,104230.0,0.25358333]
[1750269916131,0.22064363,104240.0,104230.0,0.28652662]
[1750269916341,0.56064354,104240.0,104230.0,0.50719154]
[1750269916546,0.34959251,104240.0,104230.0,0.51678506]
[1750269916754,0.34959251,104240.0,104230.0,0.51692648]
[1750269916969,0.341,104240.0,104230.0,0.51692648]
[1750269917197,0.34,104240.0,104230.0,0.66316824]
[1750269917416,0.34,104240.0,104230.0,0.61516824]
[1750269917626,0.342,104240.0,104230.0,0.61816824]